[Event "Titled Tuesday Blitz October 31 Early 2023"]
[White "Bachmann, Axel"]
[Black "Kunin, Vitaly"]
[WhiteFideId "3700488"]
[BlackFideId "4128737"]
[WhiteElo "2895"]
[BlackElo "2477"]
[Result "1-0"]
[Round "1"]
[TimeControl "180+1"]
[Date "2023.10.31"]
[WhiteClock "0:01:02"]
[BlackClock "0:00:00"]
[Board "35"]

1. b3 {[%clk 0:02:59]}  d5 {[%clk 0:02:58]} 2. Bb2 {[%clk 0:02:59]}  c6 {[%clk 0:02:56]} 3. e3 {[%clk 0:02:58]}  Nf6 {[%clk 0:02:55]} 4. Nf3 {[%clk 0:02:59]}  Bf5 {[%clk 0:02:52]} 5. d3 {[%clk 0:02:59]}  e6 {[%clk 0:02:51]} 6. Nbd2 {[%clk 0:02:59]}  h6 {[%clk 0:02:22]} 7. h3 {[%clk 0:02:56]}  Bh7 {[%clk 0:02:22]} 8. g4 {[%clk 0:02:56]}  Nbd7 {[%clk 0:02:21]} 9. Rg1 {[%clk 0:02:53]}  a5 {[%clk 0:02:19]} 10. a3 {[%clk 0:02:52]}  a4 {[%clk 0:02:15]} 11. b4 {[%clk 0:02:52]}  c5 {[%clk 0:02:15]} 12. bxc5 {[%clk 0:02:53]}  Bxc5 {[%clk 0:02:15]} 13. h4 {[%clk 0:02:53]}  Bg6 {[%clk 0:02:03]} 14. h5 {[%clk 0:02:42]}  Bh7 {[%clk 0:02:02]} 15. g5 {[%clk 0:02:43]}  hxg5 {[%clk 0:02:01]} 16. Nxg5 {[%clk 0:02:43]}  Qa5 {[%clk 0:01:44]} 17. Qf3 {[%clk 0:02:27]}  Rc8 {[%clk 0:01:35]} 18. h6 {[%clk 0:02:10]}  Bf8 {[%clk 0:01:11]} 19. Kd1 {[%clk 0:02:09]}  Qc7 {[%clk 0:01:02]} 20. Rc1 {[%clk 0:02:07]}  Ne5 {[%clk 0:01:00]} 21. Qf4 {[%clk 0:02:01]}  Ng6 {[%clk 0:00:56]} 22. Qxa4+ {[%clk 0:01:58]}  Qc6 {[%clk 0:00:56]} 23. Qb3 {[%clk 0:01:43]}  Bg8 {[%clk 0:00:45]} 24. hxg7 {[%clk 0:01:27]}  Bxg7 {[%clk 0:00:45]} 25. c4 {[%clk 0:01:28]}  dxc4 {[%clk 0:00:33]} 26. Nxc4 {[%clk 0:01:29]}  Ne7 {[%clk 0:00:23]} 27. Nb6 {[%clk 0:01:09]}  Ned5 {[%clk 0:00:00]} 28. Rxc6 {[%clk 0:01:02]} 1-0


[Site "https://www.chess.com"]

[Event "Titled Tuesday Blitz October 31 Early 2023"]
[White "Kazakouski, Valery"]
[Black "Rangel, Daniel"]
[WhiteFideId "13507443"]
[BlackFideId "2124475"]
[WhiteElo "2871"]
[BlackElo "2476"]
[Result "1-0"]
[Round "1"]
[TimeControl "180+1"]
[Date "2023.10.31"]
[WhiteClock "0:01:33"]
[BlackClock "0:00:00"]
[Board "37"]

1. Nf3 {[%clk 0:03:00]}  Nf6 {[%clk 0:02:59]} 2. c4 {[%clk 0:03:00]}  e6 {[%clk 0:02:50]} 3. g3 {[%clk 0:03:00]}  d5 {[%clk 0:02:50]} 4. b3 {[%clk 0:03:00]}  Be7 {[%clk 0:02:50]} 5. Bg2 {[%clk 0:03:00]}  O-O {[%clk 0:02:50]} 6. O-O {[%clk 0:03:01]}  a5 {[%clk 0:02:50]} 7. Nc3 {[%clk 0:03:00]}  b6 {[%clk 0:02:45]} 8. Bb2 {[%clk 0:02:59]}  Ba6 {[%clk 0:02:42]} 9. d3 {[%clk 0:02:51]}  c5 {[%clk 0:02:37]} 10. e4 {[%clk 0:02:35]}  Bb7 {[%clk 0:02:02]} 11. exd5 {[%clk 0:02:31]}  exd5 {[%clk 0:02:01]} 12. Nh4 {[%clk 0:02:32]}  Re8 {[%clk 0:01:52]} 13. Re1 {[%clk 0:02:30]}  g6 {[%clk 0:01:39]} 14. Qf3 {[%clk 0:02:18]}  Nc6 {[%clk 0:01:28]} 15. Nxd5 {[%clk 0:02:13]}  Nxd5 {[%clk 0:01:28]} 16. Qxd5 {[%clk 0:02:14]}  Bxh4 {[%clk 0:01:15]} 17. Rxe8+ {[%clk 0:02:05]}  Qxe8 {[%clk 0:01:13]} 18. gxh4 {[%clk 0:02:05]}  Rd8 {[%clk 0:01:12]} 19. Qg5 {[%clk 0:02:03]}  Rd6 {[%clk 0:00:22]} 20. Qh6 {[%clk 0:01:45]}  f6 {[%clk 0:00:22]} 21. Bd5+ {[%clk 0:01:45]}  Kh8 {[%clk 0:00:17]} 22. Qf4 {[%clk 0:01:39]}  Qe7 {[%clk 0:00:16]} 23. Qe4 {[%clk 0:01:32]}  Qxe4 {[%clk 0:00:10]} 24. dxe4 {[%clk 0:01:33]}  Nd8 {[%clk 0:00:07]} 25. e5 {[%clk 0:01:33]}  Rd7 {[%clk 0:00:00]} 26. e6 {[%clk 0:01:33]} 1-0


[Site "https://www.chess.com"]

[Event "Titled Tuesday Blitz October 31 Early 2023"]
[White "Willy, Stephen"]
[Black "Asadli, Vugar"]
[WhiteFideId "30981468"]
[BlackFideId "13405764"]
[WhiteElo "2475"]
[BlackElo "2869"]
[Result "1-0"]
[Round "1"]
[TimeControl "180+1"]
[Date "2023.10.31"]
[WhiteClock "0:00:52"]
[BlackClock "0:01:19"]
[Board "38"]

1. e4 {[%clk 0:03:00]}  c5 {[%clk 0:02:59]} 2. c3 {[%clk 0:02:59]}  d5 {[%clk 0:02:58]} 3. exd5 {[%clk 0:02:59]}  Qxd5 {[%clk 0:02:59]} 4. d4 {[%clk 0:03:00]}  Nc6 {[%clk 0:03:00]} 5. Nf3 {[%clk 0:03:00]}  Bf5 {[%clk 0:03:00]} 6. Na3 {[%clk 0:02:56]}  cxd4 {[%clk 0:02:58]} 7. Nxd4 {[%clk 0:02:51]}  Nxd4 {[%clk 0:02:46]} 8. cxd4 {[%clk 0:02:52]}  e6 {[%clk 0:02:30]} 9. Qa4+ {[%clk 0:02:49]}  Kd8 {[%clk 0:02:26]} 10. Bd2 {[%clk 0:02:28]}  Nf6 {[%clk 0:02:24]} 11. f3 {[%clk 0:02:13]}  Nd7 {[%clk 0:02:09]} 12. Bc4 {[%clk 0:02:02]}  Qxd4 {[%clk 0:02:02]} 13. O-O-O {[%clk 0:01:24]}  Ke8 {[%clk 0:01:24]} 14. Bg5 {[%clk 0:01:14]}  b5 {[%clk 0:01:24]} 15. Qxb5 {[%clk 0:01:01]}  a6 {[%clk 0:01:21]} 16. Qc6 {[%clk 0:00:56]}  Qa7 {[%clk 0:01:20]} 17. Rxd7 {[%clk 0:00:52]}  Qxd7 {[%clk 0:01:19]} 1-0


[Site "https://www.chess.com"]

[Event "Titled Tuesday Blitz October 31 Early 2023"]
[White "Pinto, Daniel"]
[Black "Sychev, Klementy"]
[WhiteFideId "3303144"]
[BlackFideId "4114060"]
[WhiteElo "2469"]
[BlackElo "2831"]
[Result "0-1"]
[Round "1"]
[TimeControl "180+1"]
[Date "2023.10.31"]
[WhiteClock "0:00:00"]
[BlackClock "0:02:25"]
[Board "46"]

1. e4 {[%clk 0:02:40]}  a6 {[%clk 0:03:00]} 2. Nf3 {[%clk 0:02:30]}  c6 {[%clk 0:02:59]} 3. Nc3 {[%clk 0:02:28]}  d5 {[%clk 0:02:59]} 4. d4 {[%clk 0:02:22]}  Bg4 {[%clk 0:02:58]} 5. h3 {[%clk 0:02:02]}  Bxf3 {[%clk 0:02:58]} 6. Qxf3 {[%clk 0:02:03]}  e6 {[%clk 0:02:59]} 7. Bd3 {[%clk 0:01:57]}  g6 {[%clk 0:02:56]} 8. O-O {[%clk 0:01:31]}  Bg7 {[%clk 0:02:56]} 9. Ne2 {[%clk 0:01:05]}  Ne7 {[%clk 0:02:51]} 10. c3 {[%clk 0:01:02]}  Nd7 {[%clk 0:02:50]} 11. exd5 {[%clk 0:00:58]}  Nxd5 {[%clk 0:02:44]} 12. Nf4 {[%clk 0:00:38]}  N5f6 {[%clk 0:02:39]} 13. Re1 {[%clk 0:00:37]}  O-O {[%clk 0:02:39]} 14. b4 {[%clk 0:00:28]}  Re8 {[%clk 0:02:38]} 15. Bc2 {[%clk 0:00:12]}  e5 {[%clk 0:02:37]} 16. dxe5 {[%clk 0:00:09]}  Nxe5 {[%clk 0:02:34]} 17. Qd1 {[%clk 0:00:09]}  a5 {[%clk 0:02:27]} 18. Bb2 {[%clk 0:00:05]}  Nc4 {[%clk 0:02:26]} 19. Qc1 {[%clk 0:00:00]}  Rxe1+ {[%clk 0:02:25]} 0-1


[Site "https://www.chess.com"]

[Event "Titled Tuesday Blitz October 31 Early 2023"]
[White "Mitrabha, Guha"]
[Black "Molina Carretero, Daniel"]
[WhiteFideId "5057000"]
[BlackFideId "32071914"]
[WhiteElo "2822"]
[BlackElo "2458"]
[Result "1-0"]
[Round "1"]
[TimeControl "180+1"]
[Date "2023.10.31"]
[WhiteClock "0:01:04"]
[BlackClock "0:00:05"]
[Board "49"]

1. Nf3 {[%clk 0:03:00]}  Nf6 {[%clk 0:02:59]} 2. d4 {[%clk 0:02:54]}  d5 {[%clk 0:02:59]} 3. Bf4 {[%clk 0:02:54]}  c5 {[%clk 0:03:00]} 4. e3 {[%clk 0:02:54]}  Nc6 {[%clk 0:03:00]} 5. Nbd2 {[%clk 0:02:54]}  Bf5 {[%clk 0:02:58]} 6. dxc5 {[%clk 0:02:53]}  e6 {[%clk 0:02:55]} 7. Nd4 {[%clk 0:02:48]}  Bxc5 {[%clk 0:02:43]} 8. Nxf5 {[%clk 0:02:45]}  exf5 {[%clk 0:02:44]} 9. c3 {[%clk 0:02:46]}  O-O {[%clk 0:02:44]} 10. Bd3 {[%clk 0:02:46]}  g6 {[%clk 0:02:39]} 11. O-O {[%clk 0:02:46]}  Re8 {[%clk 0:02:39]} 12. Qb3 {[%clk 0:02:44]}  Qb6 {[%clk 0:02:32]} 13. Rad1 {[%clk 0:02:39]}  Rad8 {[%clk 0:02:31]} 14. Qxb6 {[%clk 0:02:37]}  Bxb6 {[%clk 0:02:30]} 15. Nb3 {[%clk 0:02:38]}  Kg7 {[%clk 0:02:27]} 16. Rd2 {[%clk 0:02:37]}  Ne4 {[%clk 0:02:25]} 17. Rc2 {[%clk 0:02:36]}  h6 {[%clk 0:02:20]} 18. h3 {[%clk 0:02:31]}  a6 {[%clk 0:02:14]} 19. Rd1 {[%clk 0:02:28]}  Re7 {[%clk 0:02:07]} 20. Nd4 {[%clk 0:02:26]}  Red7 {[%clk 0:02:02]} 21. a3 {[%clk 0:02:22]}  Nc5 {[%clk 0:01:59]} 22. Be2 {[%clk 0:02:19]}  Nxd4 {[%clk 0:01:55]} 23. Be5+ {[%clk 0:02:12]}  f6 {[%clk 0:01:51]} 24. Bxd4 {[%clk 0:02:13]}  Kf7 {[%clk 0:01:45]} 25. Rcd2 {[%clk 0:02:07]}  Na4 {[%clk 0:01:43]} 26. Rb1 {[%clk 0:02:03]}  Ke6 {[%clk 0:01:38]} 27. Bd1 {[%clk 0:01:51]}  Bxd4 {[%clk 0:01:20]} 28. Bxa4 {[%clk 0:01:50]}  b5 {[%clk 0:01:21]} 29. Bxb5 {[%clk 0:01:49]}  axb5 {[%clk 0:01:16]} 30. Rxd4 {[%clk 0:01:48]}  Kd6 {[%clk 0:01:09]} 31. Rbd1 {[%clk 0:01:45]}  Kc5 {[%clk 0:01:08]} 32. Kf1 {[%clk 0:01:46]}  h5 {[%clk 0:01:07]} 33. Ke2 {[%clk 0:01:46]}  Rd6 {[%clk 0:01:07]} 34. Kd2 {[%clk 0:01:45]}  R8d7 {[%clk 0:01:05]} 35. Kc2 {[%clk 0:01:41]}  Rd8 {[%clk 0:01:05]} 36. a4 {[%clk 0:01:39]}  bxa4 {[%clk 0:00:51]} 37. Rxa4 {[%clk 0:01:40]}  Rb8 {[%clk 0:00:48]} 38. Ra5+ {[%clk 0:01:39]}  Rb5 {[%clk 0:00:49]} 39. b4+ {[%clk 0:01:37]}  Kb6 {[%clk 0:00:45]} 40. Rxb5+ {[%clk 0:01:36]}  Kxb5 {[%clk 0:00:45]} 41. Kb3 {[%clk 0:01:37]}  Rd8 {[%clk 0:00:41]} 42. Rxd5+ {[%clk 0:01:36]}  Rxd5 {[%clk 0:00:39]} 43. c4+ {[%clk 0:01:36]}  Kc6 {[%clk 0:00:40]} 44. cxd5+ {[%clk 0:01:37]}  Kxd5 {[%clk 0:00:40]} 45. b5 {[%clk 0:01:37]}  Kc5 {[%clk 0:00:30]} 46. Ka4 {[%clk 0:01:35]}  Kb6 {[%clk 0:00:30]} 47. Kb4 {[%clk 0:01:35]}  g5 {[%clk 0:00:28]} 48. f4 {[%clk 0:01:35]}  h4 {[%clk 0:00:17]} 49. Kc4 {[%clk 0:01:26]}  g4 {[%clk 0:00:17]} 50. Kb4 {[%clk 0:01:17]}  Kb7 {[%clk 0:00:10]} 51. Kc5 {[%clk 0:01:10]}  Kc7 {[%clk 0:00:11]} 52. b6+ {[%clk 0:01:08]}  Kb7 {[%clk 0:00:11]} 53. Kb5 {[%clk 0:01:08]}  Kb8 {[%clk 0:00:09]} 54. Kc6 {[%clk 0:01:07]}  Kc8 {[%clk 0:00:10]} 55. Kd6 {[%clk 0:01:04]}  Kb7 {[%clk 0:00:09]} 56. Ke6 {[%clk 0:01:04]}  Kxb6 {[%clk 0:00:07]} 57. Kxf6 {[%clk 0:01:04]}  Kc5 {[%clk 0:00:07]} 58. Kxf5 {[%clk 0:01:04]}  gxh3 {[%clk 0:00:05]} 59. gxh3 {[%clk 0:01:04]} 1-0


[Site "https://www.chess.com"]

[Event "Titled Tuesday Blitz October 31 Early 2023"]
[White "Pakleza, Zbigniew"]
[Black "Mindhunter08"]
[WhiteFideId "1119290"]
[WhiteElo "2804"]
[BlackElo "2452"]
[Result "1-0"]
[Round "1"]
[TimeControl "180+1"]
[Date "2023.10.31"]
[WhiteClock "0:00:14"]
[BlackClock "0:00:00"]
[Board "53"]

1. d4 {[%clk 0:03:00]}  d5 {[%clk 0:03:00]} 2. Bf4 {[%clk 0:03:00]}  Nf6 {[%clk 0:02:57]} 3. e3 {[%clk 0:03:00]}  c5 {[%clk 0:02:52]} 4. c3 {[%clk 0:02:59]}  Nc6 {[%clk 0:02:52]} 5. Nd2 {[%clk 0:02:59]}  Bf5 {[%clk 0:02:49]} 6. Ngf3 {[%clk 0:02:58]}  Qb6 {[%clk 0:02:44]} 7. Nh4 {[%clk 0:02:54]}  Bd7 {[%clk 0:02:39]} 8. Qb3 {[%clk 0:02:53]}  c4 {[%clk 0:02:39]} 9. Qc2 {[%clk 0:02:51]}  h6 {[%clk 0:02:37]} 10. Nhf3 {[%clk 0:02:43]}  Bg4 {[%clk 0:02:19]} 11. b3 {[%clk 0:02:28]}  cxb3 {[%clk 0:02:17]} 12. Qxb3 {[%clk 0:02:28]}  e6 {[%clk 0:02:06]} 13. Ne5 {[%clk 0:02:26]}  Bf5 {[%clk 0:01:52]} 14. Bb5 {[%clk 0:01:35]}  Rc8 {[%clk 0:01:19]} 15. c4 {[%clk 0:01:33]}  Be7 {[%clk 0:00:55]} 16. h3 {[%clk 0:01:19]}  O-O {[%clk 0:00:52]} 17. O-O {[%clk 0:01:04]}  Na5 {[%clk 0:00:42]} 18. Qd1 {[%clk 0:00:31]}  a6 {[%clk 0:00:21]} 19. Bd7 {[%clk 0:00:29]}  Rcd8 {[%clk 0:00:19]} 20. c5 {[%clk 0:00:29]}  Qa7 {[%clk 0:00:18]} 21. Ba4 {[%clk 0:00:27]}  b5 {[%clk 0:00:12]} 22. Bc2 {[%clk 0:00:23]}  Bxc2 {[%clk 0:00:09]} 23. Qxc2 {[%clk 0:00:24]}  Rc8 {[%clk 0:00:08]} 24. a4 {[%clk 0:00:22]}  b4 {[%clk 0:00:07]} 25. Rab1 {[%clk 0:00:20]}  Qb7 {[%clk 0:00:07]} 26. Nd3 {[%clk 0:00:17]}  Nc6 {[%clk 0:00:07]} 27. a5 {[%clk 0:00:17]}  Qb5 {[%clk 0:00:06]} 28. Nb3 {[%clk 0:00:14]}  Qxa5 {[%clk 0:00:00]} 29. Nxa5 {[%clk 0:00:14]} 1-0


[Site "https://www.chess.com"]

[Event "Titled Tuesday Blitz October 31 Early 2023"]
[White "Kamsky, Gata"]
[Black "Korsunsky, Yuri"]
[WhiteFideId "2000024"]
[BlackFideId "14102722"]
[WhiteElo "2803"]
[BlackElo "2449"]
[Result "1-0"]
[Round "1"]
[TimeControl "180+1"]
[Date "2023.10.31"]
[WhiteClock "0:01:18"]
[BlackClock "0:00:19"]
[Board "55"]

1. e4 {[%clk 0:03:00]}  d6 {[%clk 0:02:59]} 2. d4 {[%clk 0:02:58]}  Nf6 {[%clk 0:03:00]} 3. Nc3 {[%clk 0:02:59]}  g6 {[%clk 0:03:00]} 4. Nf3 {[%clk 0:02:55]}  Bg7 {[%clk 0:03:00]} 5. Bd3 {[%clk 0:02:51]}  O-O {[%clk 0:02:59]} 6. O-O {[%clk 0:02:51]}  Bg4 {[%clk 0:02:57]} 7. h3 {[%clk 0:02:46]}  Bxf3 {[%clk 0:02:57]} 8. Qxf3 {[%clk 0:02:46]}  Nc6 {[%clk 0:02:57]} 9. Ne2 {[%clk 0:02:41]}  e5 {[%clk 0:02:57]} 10. c3 {[%clk 0:02:37]}  d5 {[%clk 0:02:50]} 11. exd5 {[%clk 0:02:35]}  Qxd5 {[%clk 0:02:45]} 12. Qxd5 {[%clk 0:02:25]}  Nxd5 {[%clk 0:02:45]} 13. dxe5 {[%clk 0:02:12]}  Nxe5 {[%clk 0:02:43]} 14. Bc2 {[%clk 0:02:12]}  Rfe8 {[%clk 0:02:40]} 15. Nf4 {[%clk 0:02:04]}  Rad8 {[%clk 0:02:23]} 16. Nxd5 {[%clk 0:02:00]}  Rxd5 {[%clk 0:02:23]} 17. Be4 {[%clk 0:02:00]}  Rb5 {[%clk 0:02:18]} 18. a4 {[%clk 0:02:00]}  Rb6 {[%clk 0:02:18]} 19. a5 {[%clk 0:01:58]}  Rb5 {[%clk 0:02:14]} 20. Bc2 {[%clk 0:01:54]}  c6 {[%clk 0:02:03]} 21. a6 {[%clk 0:01:53]}  b6 {[%clk 0:02:00]} 22. Rd1 {[%clk 0:01:53]}  Nc4 {[%clk 0:01:49]} 23. Ra2 {[%clk 0:01:49]}  Rd5 {[%clk 0:01:42]} 24. Kf1 {[%clk 0:01:42]}  Rxd1+ {[%clk 0:01:16]} 25. Bxd1 {[%clk 0:01:42]}  c5 {[%clk 0:01:06]} 26. Be2 {[%clk 0:01:28]}  Na5 {[%clk 0:01:02]} 27. Ra4 {[%clk 0:01:25]}  Rd8 {[%clk 0:00:50]} 28. Bg5 {[%clk 0:01:23]}  Rd5 {[%clk 0:00:47]} 29. Be3 {[%clk 0:01:22]}  h6 {[%clk 0:00:39]} 30. Re4 {[%clk 0:01:21]}  Re5 {[%clk 0:00:35]} 31. Rxe5 {[%clk 0:01:20]}  Bxe5 {[%clk 0:00:35]} 32. Bxh6 {[%clk 0:01:20]}  c4 {[%clk 0:00:33]} 33. Be3 {[%clk 0:01:19]}  f5 {[%clk 0:00:19]} 34. Bxb6 {[%clk 0:01:18]} 1-0


[Site "https://www.chess.com"]

[Event "Titled Tuesday Blitz October 31 Early 2023"]
[White "Stearman, Josiah"]
[Black "Buchenau, Frank"]
[WhiteFideId "2062496"]
[BlackFideId "4604350"]
[WhiteElo "2801"]
[BlackElo "2447"]
[Result "1-0"]
[Round "1"]
[TimeControl "180+1"]
[Date "2023.10.31"]
[WhiteClock "0:01:04"]
[BlackClock "0:00:03"]
[Board "57"]

1. e4 {[%clk 0:02:59]}  e6 {[%clk 0:03:00]} 2. d3 {[%clk 0:02:59]}  d5 {[%clk 0:03:00]} 3. Qe2 {[%clk 0:03:00]}  dxe4 {[%clk 0:02:59]} 4. dxe4 {[%clk 0:03:01]}  b6 {[%clk 0:03:00]} 5. Nf3 {[%clk 0:03:02]}  Ba6 {[%clk 0:02:59]} 6. Qe3 {[%clk 0:02:56]}  Bc5 {[%clk 0:02:52]} 7. Qc3 {[%clk 0:02:55]}  Nf6 {[%clk 0:02:42]} 8. Bg5 {[%clk 0:02:45]}  Bxf1 {[%clk 0:02:31]} 9. Rxf1 {[%clk 0:02:42]}  Nc6 {[%clk 0:02:10]} 10. Nbd2 {[%clk 0:02:37]}  Nd4 {[%clk 0:01:52]} 11. Nxd4 {[%clk 0:02:06]}  Qxd4 {[%clk 0:01:49]} 12. Qxd4 {[%clk 0:02:06]}  Bxd4 {[%clk 0:01:48]} 13. O-O-O {[%clk 0:02:04]}  h6 {[%clk 0:01:40]} 14. Bh4 {[%clk 0:01:59]}  g5 {[%clk 0:01:30]} 15. Bg3 {[%clk 0:01:59]}  O-O-O {[%clk 0:01:29]} 16. f3 {[%clk 0:01:56]}  Be3 {[%clk 0:01:27]} 17. Rfe1 {[%clk 0:01:56]}  Bf4 {[%clk 0:01:16]} 18. Bxf4 {[%clk 0:01:41]}  gxf4 {[%clk 0:01:16]} 19. Nc4 {[%clk 0:01:42]}  Rhg8 {[%clk 0:01:08]} 20. Rxd8+ {[%clk 0:01:40]}  Kxd8 {[%clk 0:01:08]} 21. Re2 {[%clk 0:01:40]}  Nd7 {[%clk 0:01:02]} 22. b4 {[%clk 0:01:38]}  Ke7 {[%clk 0:00:59]} 23. c3 {[%clk 0:01:35]}  a5 {[%clk 0:00:44]} 24. bxa5 {[%clk 0:01:30]}  b5 {[%clk 0:00:45]} 25. Nd2 {[%clk 0:01:24]}  Ra8 {[%clk 0:00:29]} 26. Nb3 {[%clk 0:01:24]}  c5 {[%clk 0:00:29]} 27. Rd2 {[%clk 0:01:19]}  c4 {[%clk 0:00:19]} 28. Nd4 {[%clk 0:01:18]}  Ne5 {[%clk 0:00:13]} 29. Nxb5 {[%clk 0:01:08]}  Rxa5 {[%clk 0:00:13]} 30. Nd4 {[%clk 0:01:06]}  Nd3+ {[%clk 0:00:10]} 31. Rxd3 {[%clk 0:01:06]}  Rxa2 {[%clk 0:00:08]} 32. Nc6+ {[%clk 0:01:05]}  Kf6 {[%clk 0:00:03]} 33. Rd2 {[%clk 0:01:04]} 1-0


[Site "https://www.chess.com"]

[Event "Titled Tuesday Blitz October 31 Early 2023"]
[White "Semenenko, Dmytry"]
[Black "Vakhlamov, Igor L."]
[WhiteFideId "14118645"]
[BlackFideId "24126748"]
[WhiteElo "2445"]
[BlackElo "2792"]
[Result "0-1"]
[Round "1"]
[TimeControl "180+1"]
[Date "2023.10.31"]
[WhiteClock "0:00:18"]
[BlackClock "0:00:33"]
[Board "60"]

1. Nf3 {[%clk 0:03:00]}  d5 {[%clk 0:02:58]} 2. c4 {[%clk 0:03:00]}  e6 {[%clk 0:02:57]} 3. d4 {[%clk 0:03:00]}  Nf6 {[%clk 0:02:57]} 4. Nc3 {[%clk 0:03:00]}  c5 {[%clk 0:02:56]} 5. cxd5 {[%clk 0:03:00]}  cxd4 {[%clk 0:02:56]} 6. Qxd4 {[%clk 0:02:59]}  Nxd5 {[%clk 0:02:56]} 7. Nxd5 {[%clk 0:02:57]}  exd5 {[%clk 0:02:57]} 8. e4 {[%clk 0:02:53]}  dxe4 {[%clk 0:02:58]} 9. Qxe4+ {[%clk 0:02:53]}  Be7 {[%clk 0:02:47]} 10. Bb5+ {[%clk 0:02:53]}  Nd7 {[%clk 0:02:41]} 11. O-O {[%clk 0:02:47]}  O-O {[%clk 0:02:41]} 12. Rd1 {[%clk 0:02:43]}  Nf6 {[%clk 0:02:29]} 13. Qe2 {[%clk 0:02:31]}  Qc7 {[%clk 0:02:25]} 14. Bg5 {[%clk 0:02:30]}  Be6 {[%clk 0:02:17]} 15. Rac1 {[%clk 0:02:29]}  Qb6 {[%clk 0:02:06]} 16. Nd4 {[%clk 0:02:24]}  Bc5 {[%clk 0:02:01]} 17. Nxe6 {[%clk 0:02:14]}  fxe6 {[%clk 0:02:02]} 18. Bc4 {[%clk 0:02:11]}  Nd5 {[%clk 0:01:37]} 19. Qxe6+ {[%clk 0:01:43]}  Qxe6 {[%clk 0:01:34]} 20. Bxd5 {[%clk 0:01:43]}  Bxf2+ {[%clk 0:01:31]} 21. Kh1 {[%clk 0:01:43]}  Rae8 {[%clk 0:01:08]} 22. Bxe6+ {[%clk 0:01:37]}  Rxe6 {[%clk 0:01:09]} 23. Rc7 {[%clk 0:01:37]}  h6 {[%clk 0:01:07]} 24. Bc1 {[%clk 0:01:26]}  b5 {[%clk 0:01:06]} 25. b3 {[%clk 0:01:18]}  Re2 {[%clk 0:01:02]} 26. h3 {[%clk 0:01:06]}  Bb6 {[%clk 0:00:54]} 27. Rb7 {[%clk 0:00:58]}  Rff2 {[%clk 0:00:35]} 28. Rdd7 {[%clk 0:00:47]}  Rxg2 {[%clk 0:00:35]} 29. Rxb6 {[%clk 0:00:23]}  axb6 {[%clk 0:00:33]} 30. Ba3 {[%clk 0:00:23]}  Rh2+ {[%clk 0:00:31]} 31. Kg1 {[%clk 0:00:22]}  Reg2+ {[%clk 0:00:32]} 32. Kf1 {[%clk 0:00:22]}  Rxa2 {[%clk 0:00:33]} 33. Bc1 {[%clk 0:00:18]}  Rh1# {[%clk 0:00:33]} 0-1


[Site "https://www.chess.com"]

[Event "Titled Tuesday Blitz October 31 Early 2023"]
[White "Rosh Jain"]
[Black "Hayrapetyan, Hovik"]
[WhiteFideId "25789465"]
[BlackFideId "13302639"]
[WhiteElo "2444"]
[BlackElo "2781"]
[Result "0-1"]
[Round "1"]
[TimeControl "180+1"]
[Date "2023.10.31"]
[WhiteClock "0:00:00"]
[BlackClock "0:00:07"]
[Board "62"]

1. e4 {[%clk 0:02:59]}  c5 {[%clk 0:03:00]} 2. Nc3 {[%clk 0:02:57]}  d6 {[%clk 0:02:59]} 3. f4 {[%clk 0:02:56]}  g6 {[%clk 0:02:55]} 4. Nf3 {[%clk 0:02:53]}  Bg7 {[%clk 0:02:53]} 5. Bb5+ {[%clk 0:02:52]}  Bd7 {[%clk 0:02:47]} 6. a4 {[%clk 0:02:43]}  Nc6 {[%clk 0:02:45]} 7. d3 {[%clk 0:02:41]}  e6 {[%clk 0:01:37]} 8. O-O {[%clk 0:02:28]}  Nge7 {[%clk 0:01:37]} 9. f5 {[%clk 0:02:13]}  gxf5 {[%clk 0:01:28]} 10. Bg5 {[%clk 0:02:11]}  h6 {[%clk 0:01:23]} 11. Bh4 {[%clk 0:02:06]}  Qc7 {[%clk 0:01:09]} 12. Re1 {[%clk 0:01:53]}  fxe4 {[%clk 0:00:57]} 13. dxe4 {[%clk 0:01:40]}  O-O-O {[%clk 0:00:52]} 14. Bf1 {[%clk 0:01:29]}  a6 {[%clk 0:00:44]} 15. Nd2 {[%clk 0:01:28]}  Bd4+ {[%clk 0:00:38]} 16. Kh1 {[%clk 0:01:27]}  Rdg8 {[%clk 0:00:38]} 17. Nc4 {[%clk 0:01:26]}  Ng6 {[%clk 0:00:38]} 18. Bg3 {[%clk 0:01:25]}  Nge5 {[%clk 0:00:39]} 19. Ne2 {[%clk 0:01:23]}  Nxc4 {[%clk 0:00:34]} 20. Nxd4 {[%clk 0:01:23]}  Nxb2 {[%clk 0:00:34]} 21. Qc1 {[%clk 0:01:07]}  cxd4 {[%clk 0:00:23]} 22. Qxb2 {[%clk 0:01:06]}  e5 {[%clk 0:00:24]} 23. Bc4 {[%clk 0:01:00]}  Be6 {[%clk 0:00:22]} 24. Qb3 {[%clk 0:00:48]}  Rg6 {[%clk 0:00:18]} 25. Bxe6+ {[%clk 0:00:35]}  fxe6 {[%clk 0:00:18]} 26. c3 {[%clk 0:00:20]}  h5 {[%clk 0:00:13]} 27. Bh4 {[%clk 0:00:17]}  Rhg8 {[%clk 0:00:13]} 28. Ra2 {[%clk 0:00:16]}  dxc3 {[%clk 0:00:13]} 29. Qxc3 {[%clk 0:00:15]}  Nd4 {[%clk 0:00:14]} 30. Qa3 {[%clk 0:00:10]}  Kb8 {[%clk 0:00:12]} 31. Rc1 {[%clk 0:00:08]}  Qd7 {[%clk 0:00:10]} 32. Rb2 {[%clk 0:00:08]}  Ka8 {[%clk 0:00:09]} 33. a5 {[%clk 0:00:08]}  Rc8 {[%clk 0:00:07]} 34. Qe3 {[%clk 0:00:07]}  Rxc1+ {[%clk 0:00:06]} 35. Qxc1 {[%clk 0:00:08]}  Qc6 {[%clk 0:00:07]} 36. Qe3 {[%clk 0:00:05]}  Qa4 {[%clk 0:00:06]} 37. h3 {[%clk 0:00:04]}  Qa1+ {[%clk 0:00:07]} 38. Kh2 {[%clk 0:00:00]}  Qxb2 {[%clk 0:00:07]} 0-1


[Site "https://www.chess.com"]